Cogmind - Beta 15 *** ADVENTURER MODE // 2025.06.12 @ 16:13:01 Player: Gder Result: Self-destructed Performance ------------- Evolutions (2) 1000 Regions Visited (5) 1000 Robots Destroyed (24) 120 Value Destroyed (568) 568 Prototype IDs (23) 460 Alien Tech Used (0) 0 Bonus (556) 556 TOTAL SCORE: 3704 Bonus ------- Follower Combat Kills 256 Aligned with FarCom 300 Cogmind --------- Core Integrity 469/550 Matter 177/300 Energy 100/100 System Corruption 0% Temperature Warm (151) Movement Walking (190) Ox1 Location -8/Materials Parts ------- > --- POWER (2) -------- (None) > --- PROPULSION (4) --- Aluminum Leg > --- UTILITY (3) ------ Medium Storage Unit Seismic Detector > --- WEAPON (2) ------- Heavy Assault Rifle Heavy Assault Rifle > --- INVENTORY (10) --- Large Matter Pod (150) Medium Armor Plating Supersonic Drone Bay (1/1) Autogun Mining Laser Peak State ------------ > --- POWER ------------ Ion Engine Light Angular Momentum Engine > --- PROPULSION ------- Aluminum Leg Aluminum Leg Aluminum Leg > --- UTILITY ---------- Medium Storage Unit Seismic Detector Medium Armor Plating > --- WEAPON ----------- Heavy Assault Rifle Heavy Assault Rifle > --- INVENTORY -------- Large Matter Pod Medium Armor Plating Supersonic Drone Bay Heavy Assault Rifle Heavy Assault Rifle Autogun Mining Laser [Rating: 18] Favorites ----------- Power Light Nuclear Core Engine Light Ion Engine Power Core Light Nuclear Core Propulsion Aluminum Leg Leg Aluminum Leg Utility Seismic Detector Device Seismic Detector Storage Medium Storage Unit Protection Medium Armor Plating Weapon Heavy Assault Rifle Ballistic Gun Heavy Assault Rifle Build | -11 -10 -10 -10 -9 -8 ------- Run | Yrd Mat Min Exi Min Mat Slots Evolved 4 | . . . . . 4 Power 1 | . . . . . 1 Propulsion 2 | . . . . . 2 Utility 1 | . . . . . 1 Weapon . | . . . . . . Parts Attached 20 | 7 6 . . 3 4 Power 4 | 1 1 . . 1 1 Engine 3 | 1 . . . 1 1 Core 1 | . 1 . . . . Reactor . | . . . . . . Propulsion 5 | 2 1 . . 1 1 Treads . | . . . . . . Leg 5 | 2 1 . . 1 1 Wheel . | . . . . . . Hover . | . . . . . . Flight . | . . . . . . Utility 5 | 2 2 . . 1 . Device 1 | 1 . . . . . Storage 2 | 1 1 . . . . Processor . | . . . . . . Hackware . | . . . . . . Protection 2 | . 1 . . 1 . Artifact . | . . . . . . Weapon 6 | 2 2 . . . 2 Energy Gun . | . . . . . . Energy Cannon . | . . . . . . Ballistic Gun 6 | 2 2 . . . 2 Ballistic Cannon . | . . . . . . Launcher . | . . . . . . Special Weapon . | . . . . . . Impact Weapon . | . . . . . . Slashing Weapon . | . . . . . . Piercing Weapon . | . . . . . . Special Melee Weapon . | . . . . . . Unidentified Prototypes . | . . . . . . Parts Lost 8 | . . . . 1 7 Power 2 | . . . . . 2 Propulsion 3 | . . . . 1 2 Utility 1 | . . . . . 1 Weapon 2 | . . . . . 2 Highest Loss Streak 7 | . . . . 1 7 To Critical Strikes . | . . . . . . Average Backups 8 | 1 7 10 10 9 6 Power 1 | . 1 1 1 1 . Propulsion 1 | . . 2 2 1 . Utility 2 | . 1 3 3 4 3 Weapon 3 | . 3 4 3 3 3 Tool/Special . | . . . . . . Unused Backups 8 | . 4 . . . 4 Power 1 | . 1 . . . . Propulsion . | . . . . . . Utility 3 | . 1 . . . 2 Weapon 4 | . 2 . . . 2 Tool/Special . | . . . . . . Average Slot Usage (%) 99 | . 100 100 100 100 81 Engine 5 | . 7 . . 9 15 Core 8 | . 6 14 14 5 . Leg 27 | . 28 28 28 28 23 Device 11 | . 13 14 14 4 7 Storage 13 | . 14 14 14 14 9 Protection 2 | . . . . 10 8 Ballistic Gun 27 | . 28 28 28 28 18 Peak Build Rating 18 | 7 13 12 13 16 18 Average Rating 11 | 5 9 12 12 14 16 On Entrance 10 | . 7 12 12 13 16 Naked Turns . | . . . . . . Heaviest Build 38 | 13 22 22 22 32 38 Greatest Support 30 | 20 20 20 20 20 30 Greatest Overweight (x) 1 | . 1 1 1 1 1 Average Overweight (x) . | . . 1 1 1 1 Largest Inventory Capacity 10 | 8 10 10 10 10 10 Average Capacity 9 | 7 8 10 10 10 10 Most Carried 10 | 2 10 10 10 10 9 Average Carried 8 | 1 7 10 9 9 6 Final Capacity 10 | 8 10 10 10 10 10 Final Carried 10 | 2 10 10 10 10 5 Class Distribution -------------------- 97% | Mutant Dominant Class ---------------- Mutant | -10/Materials Mutant | -10/Mines Mutant | -10/Exiles Mutant | -9/Mines Scavenger-Mutant | -8/Materials Resources | -11 -10 -10 -10 -9 -8 ----------- Run | Yrd Mat Min Exi Min Mat Matter Collected 878 | 205 459 153 . 61 . Remotely . | . . . . . . Salvage Created 754 | 13 420 . . 118 203 Parts 49 | 3 26 . . 11 9 Haulers Intercepted 2 | . 2 . . . . Recyclers Shooed 1 | . 1 . . . . Parts Field Recycled . | . . . . . . Retrieved Matter . | . . . . . . Parts Self-Destructed . | . . . . . . Prevented . | . . . . . . Kills | -11 -10 -10 -10 -9 -8 ------- Run | Yrd Mat Min Exi Min Mat Combat Hostiles Destroyed 18 | . 11 . . 3 4 Guns 18 | . 11 . . 3 4 Classes Destroyed 8 | 1 5 . . 1 1 Worker 1 | . 1 . . . . Tunneler 1 | 1 . . . . . Hauler 2 | . 2 . . . . Watcher 2 | . 2 . . . . Swarmer 7 | . 6 . . 1 . Grunt 8 | . 5 . . 1 2 Brawler 1 | . . . . 1 . Duelist 2 | . . . . . 2 Best Kill Streak 5 | 1 5 . . 1 4 Combat Bots Only 4 | . 3 . . 1 4 Max Kills in Single Turn 2 | 1 2 . . 1 1 Gunslinging 1 | . 1 . . . . Exploded . | . . . . . . Melee . | . . . . . . Uniques/NPCs Destroyed . | . . . . . . Combat | -11 -10 -10 -10 -9 -8 -------- Run | Yrd Mat Min Exi Min Mat Hostile Shots Fired 133 | . 29 14 . 14 76 Missed 30 | . 9 1 . 6 14 Hits 103 | . 20 13 . 8 62 Melee 6 | . . . . . 6 Projectile 97 | . 20 13 . 8 56 Critical Strikes 3 | . . . . 1 2 Damage Taken 1221 | . 172 147 . 90 812 Core 129 | . 26 . . 22 81 Absorbed by Shields . | . . . . . . Ignored by Resistances 356 | . 55 43 . 26 232 Core Remaining (%) 90 | 100 . . . 80 . Volleys Fired 75 | 3 41 7 . 6 18 Largest 2 | 2 2 2 . 2 2 Hottest 46 | 40 46 46 . 46 46 Shots Fired 150 | 6 82 14 . 12 36 Gun 150 | 6 82 14 . 12 36 Cannon . | . . . . . . Launcher . | . . . . . . Special . | . . . . . . Kinetic 150 | 6 82 14 . 12 36 Thermal . | . . . . . . Explosive . | . . . . . . Electromagnetic . | . . . . . . Robot Hit Streak 30 | 2 30 6 . 8 15 Robot Miss Streak 2 | 1 1 1 . 2 1 Penetration Max . | . . . . . . Secondary Targets 5 | . 2 . . . 3 Max Gunslinging Chain 1 | . 1 . . . 1 Shots Hit Robots 128 | 3 72 12 . 9 32 Core Hits 36 | 1 23 . . 4 8 Critical Kills 1 | . 1 . . . . Critical Parts Destroyed 1 | . 1 . . . . Critical Strikes 2 | . 2 . . . . Destroy 2 | . 2 . . . . Melee Attacks . | . . . . . . Impact . | . . . . . . Slashing . | . . . . . . Piercing . | . . . . . . Sneak Attacks . | . . . . . . Combat Hostiles . | . . . . . . Follow-up Attacks . | . . . . . . Damage Inflicted 1915 | 41 1016 195 . 145 518 Guns 1895 | 41 998 193 . 145 518 Cannons . | . . . . . . Explosions . | . . . . . . Melee . | . . . . . . Ramming 20 | . 18 2 . . . Kinetic 1895 | 41 998 193 . 145 518 Thermal . | . . . . . . Explosive . | . . . . . . Electromagnetic . | . . . . . . Impact . | . . . . . . Slashing . | . . . . . . Piercing . | . . . . . . Highest Corruption . | . . . . . . Average Corruption . | . . . . . . Corruption Purged . | . . . . . . Corruption Blocked . | . . . . . . Overload Shots . | . . . . . . Overflow Damage . | . . . . . . Projectiles . | . . . . . . Explosions . | . . . . . . Melee . | . . . . . . Knockbacks . | . . . . . . Impact . | . . . . . . Kinetic . | . . . . . . Secondary . | . . . . . . Self-Inflicted Damage . | . . . . . . Shots . | . . . . . . Rammed . | . . . . . . Targets Rammed 8 | . 5 3 . . . Kicked 8 | . 5 3 . . . Crushed . | . . . . . . Highest Temperature 149 | . 54 36 . 24 149 Average Temperature 50 | . 31 18 . 18 76 Received Heat Transfer 708 | . 72 108 . 69 459 Siege Activations . | . . . . . . Martial Activations . | . . . . . . Shielding Activations . | . . . . . . Robots Disrupted . | . . . . . . Combat Hostiles . | . . . . . . Robots Corrupted . | . . . . . . Combat Hostiles . | . . . . . . Parts Fried . | . . . . . . Impact Corruptions . | . . . . . . Robots Melted . | . . . . . . Combat Hostiles . | . . . . . . Parts Melted 1 | . . . . . 1 Heat Transferred . | . . . . . . Parts Sabotaged . | . . . . . . Parts Stolen . | . . . . . . Parts Stripped . | . . . . . . Power Chain Reactions . | . . . . . . Alert | -11 -10 -10 -10 -9 -8 ------- Run | Yrd Mat Min Exi Min Mat Maximum Alert Level . | . . . . . . Low Security (%) 100 | 100 100 100 . 100 100 Level 1 . | . . . . . . Level 2 . | . . . . . . Level 3 . | . . . . . . Level 4 . | . . . . . . Level 5 . | . . . . . . High Security . | . . . . . . Max Security . | . . . . . . Peak Influence 106 | 5 88 74 . 106 40 Initial 2 | . . 2 . . . Average 21 | . 28 12 . 25 6 Influence Increases 776 | 5 308 126 . 236 101 Destroy 0b10 Robot/C 600 | . 220 100 . 200 80 Destroy 0b10 Robot/NC 30 | 5 25 . . . . Destroy Leader 118 | . 48 20 . 30 20 Allied During Kill 12 | . . 6 . 6 . Successful Hack 14 | . 14 . . . . Destroy Structure 2 | . 1 . . . 1 Influence Decreases 736 | 5 300 132 2 236 61 Entered New Map 8 | . . 6 2 . . Time Decay 603 | 5 300 112 . 176 10 Lost Part 61 | . . . . 10 51 Lost Ally 64 | . . 14 . 50 . Squads Dispatched 2 | . 1 . . 1 . Investigation 1 | . 1 . . . . Extermination . | . . . . . . Reinforcement . | . . . . . . Assault 1 | . . . . 1 . Garrison . | . . . . . . Intercept . | . . . . . . Searches Triggered . | . . . . . . Construction Impeded . | . . . . . . Haulers Reinforced . | . . . . . . Active Scanning Responses . | . . . . . . Cargo Convoy Interrupts . | . . . . . . Stealth | -11 -10 -10 -10 -9 -8 --------- Run | Yrd Mat Min Exi Min Mat Distress Signals . | . . . . . . Communications Jammed . | . . . . . . Distress Signals . | . . . . . . Times Spotted 39 | . 17 6 . 9 7 Peak Tracking Total 7 | . 6 3 . 3 7 Tactical Retreats . | . . . . . . Traps | -11 -10 -10 -10 -9 -8 ------- Run | Yrd Mat Min Exi Min Mat Traps Triggered 2 | . 2 . . . . Indirectly . | . . . . . . Trap Hack Attempts . | . . . . . . Triggered . | . . . . . . Disarmed . | . . . . . . Reprogrammed . | . . . . . . Reused . | . . . . . . Traps Extracted . | . . . . . . Installed . | . . . . . . Triggered . | . . . . . . Machines | -11 -10 -10 -10 -9 -8 ---------- Run | Yrd Mat Min Exi Min Mat Machines Disabled . | . . . . . . Max in Single Turn . | . . . . . . Machines Repaired . | . . . . . . Machines Dismantled . | . . . . . . Machines Sabotaged . | . . . . . . Overloaded Fab Kills . | . . . . . . Hacking | -11 -10 -10 -10 -9 -8 --------- Run | Yrd Mat Min Exi Min Mat Machines Accessed 10 | . 6 . 3 . 1 Terminals 7 | . 6 . . . 1 Fabricators . | . . . . . . Repair Stations . | . . . . . . Recycling Units . | . . . . . . Scanalyzers . | . . . . . . Garrison Access . | . . . . . . Total Hacks 27 | . 14 . 11 . 2 Successful 17 | . 5 . 11 . 1 Failed 10 | . 9 . . . 1 Catastrophic 1 | . 1 . . . . Database Lockouts . | . . . . . . Manual 17 | . 14 . 1 . 2 Terminals 16 | . 14 . . . 2 Fabricators . | . . . . . . Repair Stations . | . . . . . . Recycling Units . | . . . . . . Scanalyzers . | . . . . . . Garrison Access . | . . . . . . Terminal Hacks 13 | . 2 . 11 . . Record 10 | . . . 10 . . Robot Analysis 2 | . 2 . . . . Proto ID Catalog 1 | . . . 1 . . Fabricator Hacks . | . . . . . . Repair Station Hacks . | . . . . . . Recycling Unit Hacks . | . . . . . . Scanalyzer . | . . . . . . Garrison Access Hacks . | . . . . . . Unauthorized Hacks 4 | . 3 . . . 1 Terminals 4 | . 3 . . . 1 Botnet 4 | . 3 . . . 1 Fabricators . | . . . . . . Repair Stations . | . . . . . . Recycling Units . | . . . . . . Scanalyzers . | . . . . . . Garrison Access . | . . . . . . Data Cores Recovered . | . . . . . . Used . | . . . . . . Hacking Detections 8 | . 7 . . . 1 Full Trace Events . | . . . . . . Feedback Events . | . . . . . . Feedback Blocked . | . . . . . . Robot Schematics Acquired . | . . . . . . Robots Built . | . . . . . . Authchips . | . . . . . . Time . | . . . . . . Total Robot Build Rating . | . . . . . . Part Schematics Acquired . | . . . . . . Parts Built . | . . . . . . Authchips . | . . . . . . Time . | . . . . . . Total Part Build Rating . | . . . . . . Parts Repaired . | . . . . . . Time . | . . . . . . Parts Recycled . | . . . . . . Recycled Matter . | . . . . . . Retrieved Matter . | . . . . . . Retrieved Components . | . . . . . . Parts Scanalyzed . | . . . . . . Part Schematics Acquired . | . . . . . . Parts Damaged . | . . . . . . Bothacking | -11 -10 -10 -10 -9 -8 ------------ Run | Yrd Mat Min Exi Min Mat Used RIF Installer . | . . . . . . Robots Hacked . | . . . . . . Non-combat . | . . . . . . Combat . | . . . . . . Robot Hacks Applied . | . . . . . . Relay Couplers Released . | . . . . . . Fabnet Peak Effective % . | . . . . . . Robots Rewired . | . . . . . . Allies Hacked . | . . . . . . Hacks Repelled . | . . . . . . Allies | -11 -10 -10 -10 -9 -8 -------- Run | Yrd Mat Min Exi Min Mat Total Allies 4 | . . 3 . 1 . Largest Group 3 | . . 3 2 2 . Highest-Rated Group 47 | . . 40 24 47 . Highest-Rated Ally 31 | . . 16 16 31 . Total Orders . | . . . . . . Ally Attacks 40 | . . 12 . 28 . Total Damage 495 | . . 114 . 381 . Kills 12 | . . 5 . 7 . Allies Corrupted . | . . . . . . Allies Melted . | . . . . . . Intel | -11 -10 -10 -10 -9 -8 ------- Run | Yrd Mat Min Exi Min Mat Active Infowar (turns) 2250 | 24 889 621 467 152 97 Seismic 2250 | 24 889 621 467 152 97 Robot Analysis Total 2 | . 2 . . . . Derelict Logs Recovered 1 | . . 1 . . . Drone Launches . | . . . . . . Drone Recoveries . | . . . . . . Exploration | -11 -10 -10 -10 -9 -8 ------------- Run | Yrd Mat Min Exi Min Mat Turns Passed 2736 | 81 916 621 467 552 99 Spaces Moved 1419 | 52 527 304 246 269 21 Core 3 | 3 . . . . . Treads . | . . . . . . Legs 1416 | 49 527 304 246 269 21 Wheels . | . . . . . . Hover . | . . . . . . Flight . | . . . . . . Fastest Speed 50 | 50 120 190 190 190 190 Average Speed 169 | 115 141 190 190 190 190 Slowest Speed 190 | 120 190 190 190 190 190 Overloaded Moves . | . . . . . . Propulsion Burnouts . | . . . . . . Robots Hopped . | . . . . . . Potential Cave-ins . | . . . . . . Cave-ins Triggered . | . . . . . . Exploration Rate (%) 47 | 4 96 56 61 63 4 Regions Visited 5 Branch Regions 3 Pre-discovered Areas 2 | . . 1 1 . . Known Exits Taken . | . . . . . . Unknown Exits Taken 5 | 1 1 1 1 1 . Scrap Searched 3 | . . 2 . 1 . Spaces Dug . | . . . . . . Terrain Destroyed . | . . . . . . Melee . | . . . . . . Projectile . | . . . . . . AOE . | . . . . . . Terrain Rammed . | . . . . . . Walls Destroyed . | . . . . . . Machines Disabled . | . . . . . . Actions | -11 -10 -10 -10 -9 -8 --------- Run | Yrd Mat Min Exi Min Mat Total 1602 | 63 619 331 247 298 44 Wait 54 | . 17 18 . 19 . Move 1414 | 51 526 303 245 268 21 Hop . | . . . . . . Pick Up 17 | 2 13 . 1 1 . Fast Attach 7 | 7 . . . . . Attach 6 | . . . . 1 5 Detach . | . . . . . . Swap 9 | . 7 . . 2 . Drop 12 | . 10 . 1 1 . Fire 75 | 3 41 7 . 6 18 Melee . | . . . . . . Ram . | . . . . . . Kick 8 | . 5 3 . . . Crush . | . . . . . . Escape Stasis . | . . . . . . Rewire . | . . . . . . Trap . | . . . . . . Miscellaneous . | . . . . . . Route ------- -11/Scrapyard -10/Materials (discovered 6 exits: [*Mat x3] / [*Min x2] / [*Sub]) -10/Mines -10/Exiles -9/Mines -8/Materials History --------- Turn | Location | Event 4 | -11/Scrapyard | Discovered new exit (range 16) 82 | -11/Scrapyard | Entered Materials 186 | -10/Materials | Discovered new exit (range 4) 311 | -10/Materials | Build established: Mutant 394 | -10/Materials | Discovered new exit (range 9) 475 | -10/Materials | Discovered new exit (range 8) 487 | -10/Materials | Discovered new exit (range 5) 591 | -10/Materials | Discovered new exit (range 4) 635 | -10/Materials | Discovered new exit (range 13) 998 | -10/Materials | Entered Mines 1012 | -10/Mines | Found DCF Scrap (14 items) 1090 | -10/Mines | Assisted by bots powering up and referring to "LRC-V3" 1151 | -10/Mines | Learned location of Zion (-6) 1605 | -10/Mines | Deemed a non-threat by the Exiles lab entrance 1605 | -10/Mines | Discovered new exit (range 5) 1619 | -10/Mines | Entered Exiles 1619 | -10/Exiles | Accompanied by 2 allies 1665 | -10/Exiles | Met 8R-AWN 1699 | -10/Exiles | Met EX-HEX 1771 | -10/Exiles | Met EX-DEC 1825 | -10/Exiles | Met EX-BIN 1851 | -10/Exiles | Aligned with FarCom system 1853 | -10/Exiles | Given EX-Vault access code 1897 | -10/Exiles | Opened EX-Vault 1911 | -10/Exiles | Found Supersonic Drone Bay 1946 | -10/Exiles | Warned to stay clear of 0b10 Research branches 2066 | -10/Exiles | Discovered new exit (range 14) 2086 | -10/Exiles | Left Exiles lab with Supersonic Drone Bay 2086 | -10/Exiles | Entered Mines 2086 | -9/Mines | Accompanied by 2 allies 2087 | -9/Mines | Met a Derelict testing a Signal Generator 2090 | -9/Mines | Met a Derelict bent on vengeance 2594 | -9/Mines | Discovered new exit (range 12) 2638 | -9/Mines | Entered Materials 2638 | -8/Materials | Evolved 4 slots: Power x1, Propulsion x2, Utility x1 2737 | -8/Materials | Self-destructed Last Messages --------------- Terminal linked with 0 systems. Awaiting botnet instructions. 02683_ Critical hit (Burn: +37). 02708_ Hvy. Assault Rifle destroyed. 02709_ L-31 Rogue destroyed. 02715_ Hvy. Assault Rifle destroyed. 02718_ Lgt. Angular Momentum Engine destroyed. 02718_ L-31 Rogue suffers critical hit (Burn). 02719_ Aluminum Leg destroyed. 02719_ Melee Analysis Suite melted. 02719_ L-31 Rogue destroyed. 02719_ Switching to secondary target: G-47 Trooper. 02720_ Aluminum Leg destroyed. 02723_ Med. Armor Plating destroyed. 02728_ G-47 Trooper destroyed. 02728_ Switching to secondary target: Y-45 Defender. 02729_ Ion Engine destroyed. 02734_ G-47 Trooper destroyed. 02734_ Switching to secondary target: Y-45 Defender. 02735_ Critical hit (Burn: +37). Map ----- +----------------------------------------------------+ | ???????????????????????????????????????? | | ???????????????????????????????????????? | | ???????????????????????????????????????? | | ???????????????????????????????????????? | | ???????????????????????????????????????? | | ???????????????????????????????????????? | | ???????????????????????????????????????? | | ???????????????????????????????????????? | | ???????????????????????????????????????? | | ???????????????????????????????????????? | | ?????????????? ??????????????????????? | | ?????????????? ??????????????????????? | | ?????????????? ??????????????????????? | | ?????????????# #?????????????????????? | | ?????????????# #?????????????????????? | | ?????????????# #?????????????????????? | | ?????????????# #?????????????????????? | | ?????????????# #?????????????????????? | | ?????????????# g#???####??????????????? | | ?????????????# #?? ???????????????? | | ?????????????# #? ""????????????????? | | ?????????????+ # ??????????????????? | | ?????????????#=[ # ???????????????????? | | ?????????????#Y/*; ????????????????????? | | ?????????????#=%g#?????????????????????? | | ?????????????#%@*#?????????????????????? | | ???###########[ #?????????????????????? | | ???# # #?????????????????????? | | ???#"" # #?????????????????????? | | ???#"T """ # #?????????????????????? | | ???#"" """ + #?????????????????????? | | ???# """ # #?????????????????????? | | ???# # #?????????????????????? | | ???# ! # #?????????????????????? | | ???# #####?????????????????????? | | ???###########?????????????????????????? | | ???????????????????????????????????????? | | ???????????????????????????????????????? | | ???????????????????????????????????????? | | ???????????????????????????????????????? | | ???????????????????????????????????????? | | ???????????????????????????????????????? | | ???????????????????????????????????????? | | ???????????????????????????????????????? | | ???????????????????????????????????????? | | ???????????????????????????????????????? | | ???????????????????????????????????????? | | ???????????????????????????????????????? | | ???????????????????????????????????????? | | ???????????????????????????????????????? | +----------------------------------------------------+ Best States ------------- Heat Dissipation 31 Energy Generation 23 Energy Capacity 300 Matter Stores 300 Matter Capacity 300 Sight Range 16 Terrain Scan Density 10 Armor Coverage 225 Resistance: KI 20 Resistance: TH 20 Resistance: EX 20 Resistance: EM 20 Resistance: I 20 Resistance: S 20 Resistance: P 20 Evasion (%) 55 Offensive Hacking 10 Item Schematics ----------------- None Robot Schematics ------------------ None Fabricated ------------ Nothing Repaired ---------- Nothing Alien Tech Used ----------------- None Achievements -------------- None Challenges ------------ None Game ------ Seed PitchforkLobotomyPower Manual? 0 Play Time 00:29:00 Cumulative 92.3 hours Start 2025.06.12 @ 15:12:11 End 2025.06.12 @ 16:13:01 Sessions 1 Manual Loads 0 Difficulty Adventurer Special Mode None Game No. 40 Rogue 0 Adventurer 36 Explorer 4 Win Type - Total 1 Types 1/0/0/0/0/0/0/0/0/0 Lore% 24 Gallery% 39 Achievement% 40 Wizard Run 0 Options --------- Layout 0 ASCII 0 Keyboard 1 Movement Numpad Keybinds 0 Fullscreen 1 Font 36/Smallcaps Map View 76x50 Zoom Use 0% Tactical HUD 1 Map Filters NONE Filters NONE Steam 1 RUN: 6b421086-99bc-4b2a-aeed-9097d4d175db